Cogmind - Beta 15 *** ADVENTURER MODE // 2025.05.24 @ 00:43:49 Player: Seralth Result: Destroyed by D4-N07(R) with Subdweller Laser Performance ------------- Evolutions (0) 0 Regions Visited (2) 400 Robots Destroyed (14) 70 Value Destroyed (459) 459 Prototype IDs (0) 0 Alien Tech Used (0) 0 Bonus (0) 0 TOTAL SCORE: 929 Bonus ------- None Cogmind --------- Core Integrity 0/250 Matter 300/300 Energy 160/160 System Corruption 0% Temperature Cool (6) Movement Walking (190) Ox1 Location -10/Subcaves Parts ------- > --- POWER (1) -------- Light Nuclear Core > --- PROPULSION (2) --- Aluminum Leg Makeshift Flight Unit > --- UTILITY (2) ------ Subdweller Optics Makeshift Light Armor Plating > --- WEAPON (2) ------- Subdweller Laser Barrage Gun > --- INVENTORY (5) ---- Subdweller Power Source Subdweller Laser Peak State ------------ > --- POWER ------------ Light Nuclear Core > --- PROPULSION ------- Aluminum Leg Makeshift Flight Unit > --- UTILITY ---------- Subdweller Optics Makeshift Light Armor Plating > --- WEAPON ----------- Subdweller Laser Barrage Gun > --- INVENTORY -------- Subdweller Power Source Light Deuterium Engine Subdweller Laser [Rating: 19] Favorites ----------- Power Light Ion Engine Engine Light Ion Engine Power Core Light Nuclear Core Propulsion Wheel Leg Aluminum Leg Wheel Wheel Flight Unit Makeshift Flight Unit Utility Small Storage Unit Device Improved Terrain Scanner Storage Small Storage Unit Protection Scrap Shield Weapon EM Pulse Gun Energy Gun EM Pulse Gun Ballistic Gun Assault Rifle Special Weapon Mining Laser Build | -11 -10 -10 ------- Run | Yrd Mat Sub Slots Evolved . | . . . Power . | . . . Propulsion . | . . . Utility . | . . . Weapon . | . . . Parts Attached 27 | 13 1 13 Power 5 | 3 . 2 Engine 4 | 3 . 1 Core 1 | . . 1 Reactor . | . . . Propulsion 6 | 3 . 3 Treads . | . . . Leg 1 | . . 1 Wheel 3 | 3 . . Hover . | . . . Flight 2 | . . 2 Utility 5 | 2 . 3 Device 2 | 1 . 1 Storage 1 | 1 . . Processor . | . . . Hackware . | . . . Protection 2 | . . 2 Artifact . | . . . Weapon 11 | 5 1 5 Energy Gun 4 | 2 . 2 Energy Cannon . | . . . Ballistic Gun 5 | 1 1 3 Ballistic Cannon . | . . . Launcher . | . . . Special Weapon 2 | 2 . . Impact Weapon . | . . . Slashing Weapon . | . . . Piercing Weapon . | . . . Special Melee Weapon . | . . . Unidentified Prototypes . | . . . Parts Lost 6 | 4 . 2 Power . | . . . Propulsion 2 | 1 . 1 Utility 1 | . . 1 Weapon 3 | 3 . . Highest Loss Streak 3 | 3 . 1 To Critical Strikes . | . . . Average Backups 2 | 3 1 1 Power 1 | 1 1 1 Propulsion 1 | 1 . . Utility . | . . . Weapon . | . . . Tool/Special . | . . . Unused Backups 5 | 3 . 2 Power 1 | 1 . . Propulsion 2 | 2 . . Utility . | . . . Weapon 2 | . . 2 Tool/Special . | . . . Average Slot Usage (%) 89 | . 98 88 Engine 12 | . 14 12 Core 1 | . . 1 Wheel 6 | . 27 4 Flight 19 | . . 22 Device 5 | . 14 4 Storage 3 | . 14 2 Protection 9 | . . 10 Energy Gun 5 | . 1 5 Ballistic Gun 21 | . 24 21 Peak Build Rating 19 | 11 11 19 Average Rating 9 | 6 10 15 On Entrance 7 | . 11 11 Naked Turns . | . . . Heaviest Build 30 | 15 15 30 Greatest Support 26 | 26 20 20 Greatest Overweight (x) 2 | 1 1 2 Average Overweight (x) . | . . 1 Largest Inventory Capacity 8 | 8 8 8 Average Capacity 7 | 7 8 5 Most Carried 6 | 5 1 6 Average Carried 2 | 3 1 2 Final Capacity 8 | 8 8 5 Final Carried 2 | 1 1 2 Class Distribution -------------------- 97% | Mutant Dominant Class ---------------- Mutant | -10/Materials Mutant | -10/Subcaves Resources | -11 -10 -10 ----------- Run | Yrd Mat Sub Matter Collected 794 | 345 50 399 Remotely . | . . . Salvage Created 651 | 129 50 472 Parts 28 | . 2 26 Haulers Intercepted . | . . . Recyclers Shooed . | . . . Parts Field Recycled . | . . . Retrieved Matter . | . . . Parts Self-Destructed 16 | . . 16 Prevented . | . . . Kills | -11 -10 -10 ------- Run | Yrd Mat Sub Combat Hostiles Destroyed 23 | 9 1 13 Guns 22 | 8 1 13 Cannons 1 | 1 . . Classes Destroyed 4 | 1 1 2 Swarmer 3 | . . 3 Grunt 4 | . 1 3 Subdweller 7 | . . 7 Assembled 9 | 9 . . Best Kill Streak 5 | 5 1 4 Combat Bots Only 5 | 5 1 4 Max Kills in Single Turn 1 | 1 1 1 Gunslinging . | . . . Exploded . | . . . Melee . | . . . Uniques/NPCs Destroyed . | . . . Combat | -11 -10 -10 -------- Run | Yrd Mat Sub Hostile Shots Fired 118 | 53 2 63 Missed 39 | 21 . 18 Hits 79 | 32 2 45 Melee 6 | 6 . . Projectile 73 | 26 2 45 Critical Strikes 4 | 1 . 3 Part Disruptions 1 | 1 . . Damage Taken 1059 | 405 17 637 Core 258 | 129 . 129 Absorbed by Shields . | . . . Ignored by Resistances 298 | 114 5 179 Core Remaining (%) 48 | 48 . . Volleys Fired 106 | 38 2 66 Largest 2 | 2 2 2 Hottest 200 | 200 40 88 Shots Fired 180 | 53 4 123 Gun 177 | 50 4 123 Cannon . | . . . Launcher . | . . . Special 3 | 3 . . Kinetic 95 | . 4 91 Thermal 35 | 3 . 32 Explosive . | . . . Electromagnetic 50 | 50 . . Robot Hit Streak 11 | 10 2 11 Robot Miss Streak 4 | 4 1 4 Penetration Max . | . . . Secondary Targets 3 | 2 . 1 Max Gunslinging Chain 1 | 1 . 1 Shots Hit Robots 92 | 37 2 53 Core Hits 39 | 16 2 21 Critical Kills . | . . . Critical Parts Destroyed 1 | . . 1 Critical Strikes 1 | . . 1 Destroy 1 | . . 1 Melee Attacks . | . . . Impact . | . . . Slashing . | . . . Piercing . | . . . Sneak Attacks . | . . . Combat Hostiles . | . . . Follow-up Attacks . | . . . Damage Inflicted 1411 | 457 24 930 Guns 1361 | 407 24 930 Cannons . | . . . Explosions . | . . . Melee . | . . . Ramming 2 | 2 . . Kinetic 834 | . 24 810 Thermal 168 | 48 . 120 Explosive . | . . . Electromagnetic 407 | 407 . . Impact . | . . . Slashing . | . . . Piercing . | . . . Highest Corruption . | . . . Average Corruption . | . . . Corruption Purged . | . . . Corruption Blocked . | . . . Overload Shots . | . . . Overflow Damage . | . . . Projectiles . | . . . Explosions . | . . . Melee . | . . . Knockbacks . | . . . Impact . | . . . Kinetic . | . . . Secondary . | . . . Self-Inflicted Damage 1 | 1 . . Shots . | . . . Rammed 2 | 2 . . Targets Rammed 2 | 2 . . Kicked . | . . . Crushed . | . . . Highest Temperature 144 | 144 . 70 Average Temperature 56 | 61 . 27 Received Heat Transfer 487 | 220 12 255 Siege Activations . | . . . Martial Activations . | . . . Shielding Activations . | . . . Robots Disrupted . | . . . Combat Hostiles . | . . . Robots Corrupted . | . . . Combat Hostiles . | . . . Parts Fried . | . . . Impact Corruptions . | . . . Robots Melted . | . . . Combat Hostiles . | . . . Parts Melted 1 | . . 1 Heat Transferred 250 | 100 . 150 Parts Sabotaged . | . . . Parts Stolen . | . . . Parts Stripped . | . . . Power Chain Reactions . | . . . Alert | -11 -10 -10 ------- Run | Yrd Mat Sub Maximum Alert Level . | . . . Low Security (%) 100 | 100 100 . Level 1 . | . . . Level 2 . | . . . Level 3 . | . . . Level 4 . | . . . Level 5 . | . . . High Security . | . . . Max Security . | . . . Peak Influence 20 | . 20 . Initial . | . . . Average . | . 1 . Influence Increases 165 | . 20 145 Destroy 0b10 Robot/C 140 | . 20 120 Destroy Leader 10 | . . 10 Lose Combat Pursuer 15 | . . 15 Influence Decreases 165 | . 20 145 Time Decay 165 | . 20 145 Squads Dispatched . | . . . Investigation . | . . . Extermination . | . . . Reinforcement . | . . . Assault . | . . . Garrison . | . . . Intercept . | . . . Searches Triggered . | . . . Construction Impeded . | . . . Haulers Reinforced . | . . . Active Scanning Responses . | . . . Cargo Convoy Interrupts . | . . . Stealth | -11 -10 -10 --------- Run | Yrd Mat Sub Distress Signals 1 | . 1 . Communications Jammed . | . . . Distress Signals . | . . . Times Spotted 29 | 9 5 15 Peak Tracking Total 5 | 2 4 5 Tactical Retreats 1 | . . 1 Traps | -11 -10 -10 ------- Run | Yrd Mat Sub Traps Triggered 1 | . 1 . Indirectly . | . . . Trap Hack Attempts . | . . . Triggered . | . . . Disarmed . | . . . Reprogrammed . | . . . Reused . | . . . Traps Extracted . | . . . Installed . | . . . Triggered . | . . . Machines | -11 -10 -10 ---------- Run | Yrd Mat Sub Machines Disabled . | . . . Max in Single Turn . | . . . Machines Repaired . | . . . Machines Dismantled . | . . . Machines Sabotaged . | . . . Overloaded Fab Kills . | . . . Hacking | -11 -10 -10 --------- Run | Yrd Mat Sub Machines Accessed 4 | . 2 2 Terminals 2 | . 2 . Fabricators . | . . . Repair Stations . | . . . Recycling Units . | . . . Scanalyzers . | . . . Garrison Access . | . . . Total Hacks 5 | . 3 2 Successful 2 | . . 2 Failed 3 | . 3 . Catastrophic 1 | . 1 . Database Lockouts . | . . . Manual 4 | . 4 . Terminals 3 | . 3 . Fabricators . | . . . Repair Stations . | . . . Recycling Units . | . . . Scanalyzers . | . . . Garrison Access . | . . . Terminal Hacks 2 | . . 2 Record 1 | . . 1 Open Door 1 | . . 1 Fabricator Hacks . | . . . Repair Station Hacks . | . . . Recycling Unit Hacks . | . . . Scanalyzer . | . . . Garrison Access Hacks . | . . . Unauthorized Hacks . | . . . Terminals . | . . . Fabricators . | . . . Repair Stations . | . . . Recycling Units . | . . . Scanalyzers . | . . . Garrison Access . | . . . Data Cores Recovered . | . . . Used . | . . . Hacking Detections 1 | . 1 . Full Trace Events . | . . . Feedback Events . | . . . Feedback Blocked . | . . . Robot Schematics Acquired . | . . . Robots Built . | . . . Authchips . | . . . Time . | . . . Total Robot Build Rating . | . . . Part Schematics Acquired . | . . . Parts Built . | . . . Authchips . | . . . Time . | . . . Total Part Build Rating . | . . . Parts Repaired . | . . . Time . | . . . Parts Recycled . | . . . Recycled Matter . | . . . Retrieved Matter . | . . . Retrieved Components . | . . . Parts Scanalyzed . | . . . Part Schematics Acquired . | . . . Parts Damaged . | . . . Bothacking | -11 -10 -10 ------------ Run | Yrd Mat Sub Used RIF Installer . | . . . Robots Hacked . | . . . Non-combat . | . . . Combat . | . . . Robot Hacks Applied . | . . . Relay Couplers Released . | . . . Fabnet Peak Effective % . | . . . Robots Rewired . | . . . Allies Hacked . | . . . Hacks Repelled . | . . . Allies | -11 -10 -10 -------- Run | Yrd Mat Sub Total Allies . | . . . Largest Group . | . . . Highest-Rated Group . | . . . Highest-Rated Ally . | . . . Total Orders . | . . . Ally Attacks . | . . . Total Damage . | . . . Kills . | . . . Allies Corrupted . | . . . Allies Melted . | . . . Intel | -11 -10 -10 ------- Run | Yrd Mat Sub Active Infowar (turns) 905 | 124 219 562 Optics 181 | . . 181 Terrain 724 | 124 219 381 Robot Analysis Total . | . . . Derelict Logs Recovered 1 | . . 1 Drone Launches . | . . . Drone Recoveries . | . . . Exploration | -11 -10 -10 ------------- Run | Yrd Mat Sub Turns Passed 5534 | 3364 219 1951 Spaces Moved 1577 | 458 125 994 Core 1 | 1 . . Treads . | . . . Legs 77 | . . 77 Wheels 877 | 457 125 295 Hover . | . . . Flight 622 | . . 622 Fastest Speed 44 | 50 80 44 Average Speed 130 | 86 80 157 Slowest Speed 235 | 100 95 235 Overloaded Moves . | . . . Propulsion Burnouts . | . . . Robots Hopped . | . . . Potential Cave-ins . | . . . Cave-ins Triggered . | . . . Exploration Rate (%) 47 | 54 27 61 Regions Visited 2 Branch Regions 1 Pre-discovered Areas . | . . . Known Exits Taken . | . . . Unknown Exits Taken 2 | 1 1 . Scrap Searched 3 | . . 3 Spaces Dug . | . . . Terrain Destroyed . | . . . Melee . | . . . Projectile . | . . . AOE . | . . . Terrain Rammed . | . . . Walls Destroyed . | . . . Machines Disabled . | . . . Actions | -11 -10 -10 --------- Run | Yrd Mat Sub Total 4860 | 3358 237 1265 Wait 3102 | 2837 107 158 Move 1575 | 457 124 994 Hop . | . . . Pick Up 15 | 3 . 12 Fast Attach 17 | 10 3 4 Attach 3 | 1 . 2 Detach 3 | . . 3 Swap 14 | 6 1 7 Drop 20 | 4 . 16 Fire 106 | 38 2 66 Melee . | . . . Ram 2 | 2 . . Kick . | . . . Crush . | . . . Escape Stasis . | . . . Rewire . | . . . Trap . | . . . Miscellaneous 3 | . . 3 Route ------- -11/Scrapyard -10/Materials (discovered 2 exits: [*Mat] / *Sub) -10/Subcaves (discovered 1 exit: [*Mat]) History --------- Turn | Location | Event 15 | -11/Scrapyard | Discovered new exit (range 16) 2836 | -11/Scrapyard | Assembled infested the area 3206 | -11/Scrapyard | Lost 3 parts (1n2w) 3212 | -11/Scrapyard | Core integrity fell below 50% 3365 | -11/Scrapyard | Entered Materials 3366 | -10/Materials | Build established: Mutant 3423 | -10/Materials | Discovered new exit (range 13) 3549 | -10/Materials | Discovered new exit (range 7) 3584 | -10/Materials | Entered Subcaves 3585 | -10/Subcaves | Approached by a straggling Scientist 3809 | -10/Subcaves | Shifting Twisted Machinery released Mak. Flight Unit 3858 | -10/Subcaves | Shifting Twisted Machinery released Sub. Laser 4464 | -10/Subcaves | A swath of the cavern ceiling suddenly collapsed 4722 | -10/Subcaves | Disturbed a concealed Subdweller 5114 | -10/Subcaves | Ambushed by Subdwellers from Twisted Machinery 5208 | -10/Subcaves | Discovered new exit (range 13) 5246 | -10/Subcaves | Core integrity fell below 20% 5276 | -10/Subcaves | Learned 4 Materials zone layouts 5535 | -10/Subcaves | Destroyed by D4-N07(R) with Subdweller Laser Last Messages --------------- 05339_ Acquired 20 matter. 05344_ Acquired Sub. Laser. 05346_ Subatomizers dissect the Wheel. 05347_ Dropped Sub. Laser. 05348_ Dropped Sub. Machine Gun. 05361_ Flight Unit destroyed. 05371_ G-34 Mercenary destroyed. 05372_ Critical hit (Burn: +37). 05374_ G-47 Trooper destroyed. 05378_ Aluminum Leg fries itself beyond repair. 05378_ Particle Gun fries itself beyond repair. 05385_ Acquired Aluminum Leg. 05390_ Acquired 45 matter. 05407_ Dropped Lgt. Deuterium Engine. 05410_ Dropped Sub. Laser. 05424_ Acquired Sub. Laser. 05457_ Subatomizers dissect the Sub. Power Source. 05461_ Sub. Optics shoots sparks and powers down. Map ----- +----------------------------------------------------+ | ???????????????# ## ##?? ##???? | | ???????????????## #??# ##??? | | ????????????????# ## #### ##?? | | ????????????????## ##?# ### #?? | | ?????????????????# ###?##### #?? | | ?????????????????## ###### ##? | | ??????????????????## ## | | ???????????????????## ## ![! ! | | ????????????????????##### *%&& / | | ????????????????????????## %! | | ?????????????????????????#### ### ## | | ???????????????????#???##?### #?## ##??? | | ??????????????????# ## # & ##??# #????? | | ??????????????????# " #??# #???? | | ?????????????????# ## ##"# ##?? ##?? | | ??????????????????? ?????### ##?? ##? | | ??????????????????? ????#### #?? #? | | ?????????????????## #???# ##?# ##? | | ?????????????????# ???## ### ###?? | | ?????????????????? ????## # #???? | | ?????????????????? <"?????## ##???? | | ??????????????????" ??????## #????? | | ??????????????????" #?????### #????? | | ??????????????????# #?????# ### #???? | | ?????????????????## #?????# ##?? ? | | ?????????????????# @##???## ###??? | | ?????????????????## #???#! * #????? #### # | | ?????????????????#" ####### *=#?????#?????"? | | ?????????????????# # %!!##????????????? | | ?????????????????## ## ##?###????????? | | ?????????????????## ## # # #????????? | | ?????????????????# ## " " #????????? | | ?????????????????# R### ""#????????? | | ?????????????????# ^ # "#????????? | | ?????????????????## ^ ### ""???????? | | ?????????????????## ^ #### """???????? | | ?????????????????# #### #??????? | | ?????????????????#### "######??????? | | ????????????????????### ^^ " ## #?? | | ???????????????#?????## ##" " ??? | | ???????????????# ????# ###?????? | | ???????????????# ???# ####???????? | | ??????????????## ???# *# " #??????????? | | ??????????????# #### # "#??????????? | | ???????????????# [ % ##??????????? | | ???????????????## ##???????????? | | ???????????????## # ##????????????? | | ??????????????## ###?????????????? | | ??????????????# ##??????????????? | | ??????????????# #??????????????? | +----------------------------------------------------+ Best States ------------- Heat Dissipation 25 Energy Generation 15 Energy Capacity 200 Matter Stores 300 Matter Capacity 300 Sight Range 21 Terrain Scan Range 16 Terrain Scan Density 10 Armor Coverage 800 Resistance: KI 20 Resistance: TH 20 Resistance: EX 20 Resistance: EM 20 Resistance: I 20 Resistance: S 20 Resistance: P 20 Evasion (%) 61 Offensive Hacking 10 Item Schematics ----------------- None Robot Schematics ------------------ None Fabricated ------------ Nothing Repaired ---------- Nothing Alien Tech Used ----------------- None Achievements -------------- None Challenges ------------ None Game ------ Seed ThermalIonRifle Manual? 0 Play Time 00:22:09 Cumulative 10.2 hours Start 2025.05.24 @ 00:25:41 End 2025.05.24 @ 00:43:49 Sessions 1 Manual Loads 0 Difficulty Adventurer Special Mode None Game No. 19 Rogue 3 Adventurer 16 Explorer 0 Win Type - Total 0 Types 0/0/0/0/0/0/0/0/0/0 Lore% 6 Gallery% 19 Achievement% 17 Wizard Run 0 Options --------- Layout 1 ASCII 0 Keyboard 1 Movement Numpad Keybinds 0 Fullscreen 1 Font 32/SmallcapsGlow Map View 50x40 Zoom Use 0% Tactical HUD 1 Map Filters NONE Filters NONE Steam 1 RUN: 311374a1-19fa-4aa8-bc5d-92c08c0c4a21